[Event "*** MasterClass Titled Tuesday Blitz"]
[Site "Chess.com"]
[Date "2017.11.07"]
[Round "3"]
[White "djogrodek1"]
[Black "LawrenceTrent"]
[Result "0-1"]
[WhiteElo "2343"]
[BlackElo "2358"]
[TimeControl "180+2"]
[EndTime "14:43:36 PST"]
[Termination "LawrenceTrent won by resignation"]

1. c4 {[%clk 0:02:59.2]} 1... g6 {[%clk 0:02:59.3]} 2. Nc3 {[%clk 0:02:59.8]}
2... Bg7 {[%clk 0:03:01.2]} 3. g3 {[%clk 0:03:01.4]} 3... Nf6 {[%clk 0:03:01.4]}
4. Bg2 {[%clk 0:03:02.8]} 4... O-O {[%clk 0:03:03.3]} 5. e4 {[%clk 0:02:52]}
5... c5 {[%clk 0:03:04.3]} 6. Nge2 {[%clk 0:02:53.1]} 6... Nc6 {[%clk
0:03:05.2]} 7. O-O {[%clk 0:02:55]} 7... Ne8 {[%clk 0:03:06.2]} 8. d3 {[%clk
0:02:55.6]} 8... Nc7 {[%clk 0:03:07.5]} 9. Be3 {[%clk 0:02:56.9]} 9... Ne6
{[%clk 0:03:08.9]} 10. f4 {[%clk 0:02:53.1]} 10... Ned4 {[%clk 0:03:10.2]} 11.
f5 {[%clk 0:02:52.3]} 11... d6 {[%clk 0:03:11.3]} 12. g4 {[%clk 0:02:53.6]}
12... Rb8 {[%clk 0:03:10.1]} 13. Rc1 {[%clk 0:02:44.3]} 13... Bd7 {[%clk
0:03:07.2]} 14. Qd2 {[%clk 0:02:38.8]} 14... b5 {[%clk 0:03:03.4]} 15. b3 {[%clk
0:02:32.6]} 15... b4 {[%clk 0:03:01.7]} 16. Nd5 {[%clk 0:02:32.5]} 16... a5
{[%clk 0:02:34.5]} 17. f6 {[%clk 0:02:06]} 17... Nxe2+ {[%clk 0:02:32.7]} 18.
Qxe2 {[%clk 0:02:06]} 18... exf6 {[%clk 0:02:31.1]} 19. Qf2 {[%clk 0:01:58.4]}
19... Bxg4 {[%clk 0:02:18.3]} 20. Qh4 {[%clk 0:01:44.1]} 20... f5 {[%clk
0:02:13.7]} 21. Bg5 {[%clk 0:01:43.4]} 21... f6 {[%clk 0:02:14.7]} 22. Be3
{[%clk 0:01:38.6]} 22... Ne5 {[%clk 0:01:55.6]} 23. h3 {[%clk 0:01:18.3]} 23...
Be2 {[%clk 0:01:50.4]} 24. exf5 {[%clk 0:01:18.5]} 24... g5 {[%clk 0:01:44.7]}
25. Qf2 {[%clk 0:01:11.4]} 25... Bxf1 {[%clk 0:01:39.8]} 26. Bxf1 {[%clk
0:01:13.3]} 26... g4 {[%clk 0:01:39.8]} 27. Be2 {[%clk 0:01:08.4]} 27... Rf7
{[%clk 0:01:25.6]} 28. hxg4 {[%clk 0:01:00.5]} 28... Qf8 {[%clk 0:01:26.8]} 29.
Nf4 {[%clk 0:00:58.1]} 29... Bh6 {[%clk 0:01:15]} 30. Ne6 {[%clk 0:00:55.1]}
30... Bxe3 {[%clk 0:01:16.1]} 31. Qxe3 {[%clk 0:00:57]} 31... Qe7 {[%clk
0:01:16.7]} 32. Bf3 {[%clk 0:00:55]} 32... Kh8 {[%clk 0:01:17.5]} 33. Kf2 {[%clk
0:00:37.7]} 33... Rg8 {[%clk 0:01:18]} 34. Rg1 {[%clk 0:00:39.2]} 34... a4
{[%clk 0:01:18.9]} 35. Ke2 {[%clk 0:00:36.3]} 35... axb3 {[%clk 0:01:19.9]} 36.
axb3 {[%clk 0:00:38.2]} 36... Qa7 {[%clk 0:01:21.1]} 37. Qd2 {[%clk 0:00:36.1]}
37... Qa3 {[%clk 0:01:21.7]} 38. Rh1 {[%clk 0:00:31.3]} 38... Qxb3 {[%clk
0:01:19.2]} 39. g5 {[%clk 0:00:20.8]} 39... Nxf3 {[%clk 0:01:13.1]} 40. Kxf3
{[%clk 0:00:18.6]} 40... fxg5 {[%clk 0:01:14.2]} 41. Ke4 {[%clk 0:00:20]} 41...
Qc3 {[%clk 0:01:08]} 42. Qh2 {[%clk 0:00:19.3]} 42... Qf6 {[%clk 0:00:45.5]} 43.
Qh6 {[%clk 0:00:18]} 0-1

[Event "*** MasterClass Titled Tuesday Blitz"]
[Site "Chess.com"]
[Date "2017.11.07"]
[Round "3"]
[White "nubair1198"]
[Black "StoreySniper"]
[Result "1-0"]
[WhiteElo "2535"]
[BlackElo "2291"]
[TimeControl "180+2"]
[EndTime "14:43:47 PST"]
[Termination "nubair1198 won by resignation"]

1. c4 {[%clk 0:03:01.9]} 1... g6 {[%clk 0:03:01.8]} 2. Nc3 {[%clk 0:03:01.7]}
2... Bg7 {[%clk 0:03:03.3]} 3. d4 {[%clk 0:03:03]} 3... c5 {[%clk 0:03:03.9]} 4.
Nf3 {[%clk 0:03:00.3]} 4... cxd4 {[%clk 0:03:02.9]} 5. Nxd4 {[%clk 0:03:01.5]}
5... Nc6 {[%clk 0:03:04.2]} 6. e3 {[%clk 0:03:02.3]} 6... Nh6 {[%clk 0:03:04.4]}
7. Be2 {[%clk 0:03:03.6]} 7... d6 {[%clk 0:03:05.5]} 8. Bf3 {[%clk 0:03:04.2]}
8... Bd7 {[%clk 0:03:05.2]} 9. O-O {[%clk 0:03:04.2]} 9... Nf5 {[%clk 0:03:06]}
10. Nxf5 {[%clk 0:03:04.6]} 10... Bxf5 {[%clk 0:03:06.6]} 11. Qd2 {[%clk
0:02:52.4]} 11... Rc8 {[%clk 0:03:02.4]} 12. b3 {[%clk 0:02:51.5]} 12... Qd7
{[%clk 0:02:44.1]} 13. Bb2 {[%clk 0:02:51.7]} 13... Bg4 {[%clk 0:02:26]} 14. Bd5
{[%clk 0:02:46.3]} 14... O-O {[%clk 0:02:23.5]} 15. h3 {[%clk 0:02:44.4]} 15...
Be6 {[%clk 0:02:07]} 16. Rac1 {[%clk 0:02:44.5]} 16... Ne5 {[%clk 0:02:03.1]}
17. f4 {[%clk 0:02:42.4]} 17... Nc6 {[%clk 0:01:58.2]} 18. Bf3 {[%clk 0:02:41]}
18... a6 {[%clk 0:01:43.1]} 19. Rfd1 {[%clk 0:02:30.2]} 19... Nb4 {[%clk
0:01:33]} 20. Ne4 {[%clk 0:02:08.1]} 20... Bxb2 {[%clk 0:01:30.1]} 21. Qxb2
{[%clk 0:02:08.4]} 21... Bf5 {[%clk 0:01:17.7]} 22. Rxd6 {[%clk 0:02:07.1]}
22... Qc7 {[%clk 0:01:04.1]} 23. Rd2 {[%clk 0:02:05.4]} 23... Rfd8 {[%clk
0:00:59]} 24. Rcd1 {[%clk 0:02:04.2]} 24... Rxd2 {[%clk 0:00:56.8]} 25. Qxd2
{[%clk 0:02:04.8]} 25... Bxe4 {[%clk 0:00:53.9]} 26. Bxe4 {[%clk 0:02:04.3]}
26... a5 {[%clk 0:00:49.2]} 27. Qd7 {[%clk 0:02:04.4]} 27... Qc5 {[%clk
0:00:48.7]} 28. Qd4 {[%clk 0:02:00.5]} 28... Nxa2 {[%clk 0:00:39.3]} 29. Bxb7
{[%clk 0:01:43.8]} 29... Qxd4 {[%clk 0:00:36.6]} 30. Rxd4 {[%clk 0:01:45]} 30...
Rb8 {[%clk 0:00:38.1]} 31. Rd7 {[%clk 0:01:46.3]} 31... Nc1 {[%clk 0:00:38.9]}
32. c5 {[%clk 0:01:45.5]} 32... Nxb3 {[%clk 0:00:27.9]} 33. c6 {[%clk 0:01:47]}
33... Nc5 {[%clk 0:00:29]} 34. Rxe7 {[%clk 0:01:48.1]} 34... Nxb7 {[%clk
0:00:27.9]} 35. Rxb7 {[%clk 0:01:41.2]} 35... Rc8 {[%clk 0:00:27.9]} 36. c7
{[%clk 0:01:42.6]} 36... Kg7 {[%clk 0:00:29.3]} 37. Ra7 {[%clk 0:01:39.4]} 37...
a4 {[%clk 0:00:30.1]} 38. Kf2 {[%clk 0:01:40.9]} 38... a3 {[%clk 0:00:31.3]} 39.
Kf3 {[%clk 0:01:37.7]} 39... a2 {[%clk 0:00:32.1]} 40. g4 {[%clk 0:01:37]} 40...
Rxc7 {[%clk 0:00:27.5]} 41. Rxa2 {[%clk 0:01:38]} 41... Rc5 {[%clk 0:00:22.8]}
42. h4 {[%clk 0:01:38.6]} 42... h5 {[%clk 0:00:23.7]} 43. g5 {[%clk 0:01:39.2]}
43... Rc1 {[%clk 0:00:21.6]} 44. f5 {[%clk 0:01:40.6]} 44... Rf1+ {[%clk
0:00:20]} 45. Rf2 {[%clk 0:01:40.4]} 45... Rxf2+ {[%clk 0:00:21.1]} 46. Kxf2
{[%clk 0:01:41.7]} 46... gxf5 {[%clk 0:00:22.8]} 47. Kg3 {[%clk 0:01:43]} 47...
f6 {[%clk 0:00:24.3]} 48. gxf6+ {[%clk 0:01:28.1]} 48... Kxf6 {[%clk 0:00:25.2]}
49. Kf4 {[%clk 0:01:29.7]} 49... Ke6 {[%clk 0:00:23.1]} 50. Kg5 {[%clk
0:01:30.9]} 50... Ke5 {[%clk 0:00:24.4]} 51. Kxh5 {[%clk 0:01:32.2]} 51... Kf6
{[%clk 0:00:24.3]} 52. Kh6 {[%clk 0:01:31.8]} 52... f4 {[%clk 0:00:15.7]} 53.
exf4 {[%clk 0:01:32.3]} 53... Kf7 {[%clk 0:00:14.8]} 54. Kg5 {[%clk 0:01:33.2]}
1-0

[Event "*** MasterClass Titled Tuesday Blitz"]
[Site "Chess.com"]
[Date "2017.11.07"]
[Round "3"]
[White "wanyaland"]
[Black "Tobi-Wan-Kenobi"]
[Result "0-1"]
[WhiteElo "2243"]
[BlackElo "2472"]
[TimeControl "180+2"]
[EndTime "14:43:55 PST"]
[Termination "Tobi-Wan-Kenobi won by resignation"]

1. Nf3 {[%clk 0:03:01.9]} 1... c5 {[%clk 0:02:49.6]} 2. c4 {[%clk 0:03:01.8]}
2... Nc6 {[%clk 0:02:49.7]} 3. g3 {[%clk 0:03:02]} 3... g6 {[%clk 0:02:49.7]} 4.
d4 {[%clk 0:03:01]} 4... cxd4 {[%clk 0:02:49.6]} 5. Nxd4 {[%clk 0:03:01.8]} 5...
Bg7 {[%clk 0:02:51.2]} 6. e3 {[%clk 0:02:59.9]} 6... Nf6 {[%clk 0:02:44.1]} 7.
Bg2 {[%clk 0:03:00.5]} 7... O-O {[%clk 0:02:45]} 8. Nc3 {[%clk 0:03:00.8]} 8...
d6 {[%clk 0:02:36.8]} 9. O-O {[%clk 0:02:53.3]} 9... Bd7 {[%clk 0:02:34.7]} 10.
b3 {[%clk 0:02:53.4]} 10... Qc8 {[%clk 0:02:07.3]} 11. Re1 {[%clk 0:02:50.3]}
11... Bh3 {[%clk 0:02:02.3]} 12. Bh1 {[%clk 0:02:49.8]} 12... Bg4 {[%clk
0:02:03.3]} 13. f3 {[%clk 0:02:45.3]} 13... Bd7 {[%clk 0:02:01.7]} 14. Bb2
{[%clk 0:02:45.3]} 14... a6 {[%clk 0:01:57.3]} 15. Rc1 {[%clk 0:02:45.1]} 15...
Qd8 {[%clk 0:01:47.6]} 16. f4 {[%clk 0:02:40.5]} 16... Rc8 {[%clk 0:01:46.2]}
17. Bg2 {[%clk 0:02:39.2]} 17... Nxd4 {[%clk 0:01:43.5]} 18. exd4 {[%clk
0:02:39.4]} 18... b5 {[%clk 0:01:43.5]} 19. Bb7 {[%clk 0:02:34.4]} 19... Rb8
{[%clk 0:01:19.1]} 20. Bxa6 {[%clk 0:02:34.4]} 20... b4 {[%clk 0:01:18.3]} 21.
Nd5 {[%clk 0:02:32.1]} 21... Nxd5 {[%clk 0:01:15.8]} 22. cxd5 {[%clk 0:02:32.3]}
22... Qa5 {[%clk 0:01:17.7]} 23. Bc4 {[%clk 0:02:23.1]} 23... Rfe8 {[%clk
0:01:14.6]} 24. Qd2 {[%clk 0:02:21.1]} 24... h5 {[%clk 0:01:10.9]} 25. a4 {[%clk
0:02:17.5]} 25... h4 {[%clk 0:01:10.7]} 26. Re3 {[%clk 0:01:56.6]} 26... Bf6
{[%clk 0:01:06.8]} 27. Rce1 {[%clk 0:01:51.5]} 27... Kg7 {[%clk 0:01:07]} 28.
Qg2 {[%clk 0:01:49.6]} 28... hxg3 {[%clk 0:01:06]} 29. hxg3 {[%clk 0:01:46.2]}
29... Qa7 {[%clk 0:01:03.3]} 30. Qd2 {[%clk 0:01:33.5]} 30... Rh8 {[%clk
0:01:02.7]} 31. Bf1 {[%clk 0:01:09.3]} 31... Bg4 {[%clk 0:00:57.5]} 32. Bg2
{[%clk 0:01:07.1]} 32... Rbc8 {[%clk 0:00:57.1]} 33. Bf3 {[%clk 0:00:52.2]}
33... Bxf3 {[%clk 0:00:54.6]} 34. Rxf3 {[%clk 0:00:53]} 34... Qb7 {[%clk
0:00:49.1]} 35. Qd3 {[%clk 0:00:20.2]} 35... Qxd5 {[%clk 0:00:46.6]} 36. Qe4
{[%clk 0:00:20.6]} 36... Qxe4 {[%clk 0:00:44.4]} 37. Rxe4 {[%clk 0:00:21.3]}
37... Rc2 {[%clk 0:00:46.3]} 38. Ba1 {[%clk 0:00:17.3]} 38... Rc1+ {[%clk
0:00:45.2]} 39. Rf1 {[%clk 0:00:17.9]} 39... Rxf1+ {[%clk 0:00:44.2]} 40. Kxf1
{[%clk 0:00:19.8]} 40... Rh1+ {[%clk 0:00:45.6]} 41. Ke2 {[%clk 0:00:21.1]}
41... Rxa1 {[%clk 0:00:46.5]} 42. Kd3 {[%clk 0:00:22.9]} 42... d5 {[%clk
0:00:46.2]} 43. Re2 {[%clk 0:00:22.3]} 43... Rd1+ {[%clk 0:00:46.7]} 44. Rd2
{[%clk 0:00:23.9]} 44... Rxd2+ {[%clk 0:00:47.4]} 45. Kxd2 {[%clk 0:00:25.8]}
45... Bxd4 {[%clk 0:00:49]} 46. Kd3 {[%clk 0:00:27.6]} 46... Bb6 {[%clk
0:00:48.6]} 47. g4 {[%clk 0:00:29.5]} 47... f6 {[%clk 0:00:48.5]} 0-1

[Event "*** MasterClass Titled Tuesday Blitz"]
[Site "Chess.com"]
[Date "2017.11.07"]
[Round "3"]
[White "Giorno"]
[Black "gpeloui"]
[Result "0-1"]
[WhiteElo "2337"]
[BlackElo "2256"]
[TimeControl "180+2"]
[EndTime "14:43:55 PST"]
[Termination "gpeloui won by resignation"]

1. d4 {[%clk 0:03:01.9]} 1... Nf6 {[%clk 0:02:59.6]} 2. Nf3 {[%clk 0:03:01.9]}
2... g6 {[%clk 0:03:00.3]} 3. Nc3 {[%clk 0:02:59.6]} 3... d5 {[%clk 0:03:00.3]}
4. Bf4 {[%clk 0:02:57.4]} 4... Bg7 {[%clk 0:03:01.3]} 5. h4 {[%clk 0:02:56.8]}
5... O-O {[%clk 0:03:02.3]} 6. h5 {[%clk 0:02:54.9]} 6... Nxh5 {[%clk
0:03:00.9]} 7. Rxh5 {[%clk 0:02:47.1]} 7... gxh5 {[%clk 0:03:02.8]} 8. e3 {[%clk
0:02:46.3]} 8... Bg4 {[%clk 0:03:02.1]} 9. Be2 {[%clk 0:02:46.5]} 9... c5 {[%clk
0:03:02.3]} 10. dxc5 {[%clk 0:02:42.6]} 10... Qa5 {[%clk 0:02:59.8]} 11. Qd3
{[%clk 0:02:36]} 11... Bxf3 {[%clk 0:02:55.1]} 12. gxf3 {[%clk 0:02:26.2]} 12...
e5 {[%clk 0:02:55.9]} 13. Bxe5 {[%clk 0:02:09.2]} 13... Bxe5 {[%clk 0:02:53.5]}
14. O-O-O {[%clk 0:02:08.5]} 14... Nc6 {[%clk 0:02:51.4]} 15. Rh1 {[%clk
0:01:39.2]} 15... Rfd8 {[%clk 0:02:34.6]} 16. Rxh5 {[%clk 0:01:35.6]} 16... Bg7
{[%clk 0:02:35.4]} 17. Qxh7+ {[%clk 0:01:29]} 17... Kf8 {[%clk 0:02:36.5]} 18.
Rg5 {[%clk 0:01:14.4]} 18... Bxc3 {[%clk 0:02:34.7]} 19. bxc3 {[%clk 0:00:58]}
19... Qxc3 {[%clk 0:02:30.9]} 20. Rf5 {[%clk 0:00:31.1]} 20... Qg7 {[%clk
0:02:11.8]} 21. Qh4 {[%clk 0:00:31.3]} 21... b6 {[%clk 0:02:00]} 22. Rg5 {[%clk
0:00:31.1]} 22... Qa1+ {[%clk 0:01:59.4]} 23. Kd2 {[%clk 0:00:31.8]} 23... bxc5
{[%clk 0:01:59.4]} 24. Bb5 {[%clk 0:00:20.8]} 24... Nb4 {[%clk 0:01:50]} 25.
Qh6+ {[%clk 0:00:18.8]} 25... Ke7 {[%clk 0:01:48.3]} 26. Rf5 {[%clk 0:00:16.2]}
26... Qb2 {[%clk 0:01:32.3]} 27. Qg5+ {[%clk 0:00:17.1]} 27... Ke6 {[%clk
0:01:24.1]} 28. Ba4 {[%clk 0:00:08.9]} 28... c4 {[%clk 0:01:15.6]} 29. Qg4
{[%clk 0:00:07.3]} 29... Ke7 {[%clk 0:01:14.5]} 30. Qg5+ {[%clk 0:00:07.8]}
30... Kf8 {[%clk 0:01:04.4]} 31. Qh6+ {[%clk 0:00:05.2]} 31... Qg7 {[%clk
0:01:03.9]} 32. Qf4 {[%clk 0:00:04.3]} 32... d4 {[%clk 0:01:02.6]} 33. e4 {[%clk
0:00:04.5]} 33... c3+ {[%clk 0:00:59]} 34. Ke2 {[%clk 0:00:05]} 34... d3+ {[%clk
0:01:00.3]} 35. cxd3 {[%clk 0:00:06.1]} 35... Nxd3 {[%clk 0:01:02.2]} 36. Qc7
{[%clk 0:00:06.1]} 36... Nc1+ {[%clk 0:00:59.6]} 37. Kf1 {[%clk 0:00:06.5]}
37... Rac8 {[%clk 0:00:45.4]} 38. Qa5 {[%clk 0:00:07.5]} 38... Qd4 {[%clk
0:00:43.6]} 39. Kg1 {[%clk 0:00:06.3]} 39... Ne2+ {[%clk 0:00:43.9]} 40. Kg2
{[%clk 0:00:07.6]} 40... c2 {[%clk 0:00:44.5]} 41. Bb3 {[%clk 0:00:08]} 41...
Qg7+ {[%clk 0:00:44.5]} 42. Rg5 {[%clk 0:00:08.4]} 42... Qxg5+ {[%clk
0:00:38.1]} 43. Qxg5 {[%clk 0:00:10.3]} 43... c1=Q {[%clk 0:00:39.7]} 44. Qf6
{[%clk 0:00:11.8]} 44... Nf4+ {[%clk 0:00:39.2]} 45. Kg3 {[%clk 0:00:12.5]}
45... Nh5+ {[%clk 0:00:40.4]} 0-1

[Event "*** MasterClass Titled Tuesday Blitz"]
[Site "Chess.com"]
[Date "2017.11.07"]
[Round "3"]
[White "Summer-Paradise"]
[Black "Jospem"]
[Result "0-1"]
[WhiteElo "2475"]
[BlackElo "2612"]
[TimeControl "180+2"]
[EndTime "14:44:10 PST"]
[Termination "Jospem won by checkmate"]

1. d4 {[%clk 0:03:01.9]} 1... Nf6 {[%clk 0:02:59.9]} 2. c4 {[%clk 0:03:03.3]}
2... e6 {[%clk 0:03:01.5]} 3. Nf3 {[%clk 0:03:04.8]} 3... c5 {[%clk 0:03:00.8]}
4. d5 {[%clk 0:03:05]} 4... exd5 {[%clk 0:03:02.4]} 5. cxd5 {[%clk 0:03:06.9]}
5... d6 {[%clk 0:03:03.8]} 6. Nc3 {[%clk 0:03:08.4]} 6... g6 {[%clk 0:03:05.3]}
7. e4 {[%clk 0:03:09.8]} 7... Bg7 {[%clk 0:03:06.6]} 8. Bg5 {[%clk 0:03:10.9]}
8... a6 {[%clk 0:03:00.6]} 9. Nd2 {[%clk 0:03:04.1]} 9... h6 {[%clk 0:02:59.2]}
10. Bh4 {[%clk 0:03:03.6]} 10... b5 {[%clk 0:02:58.4]} 11. Qc2 {[%clk
0:03:04.2]} 11... Nbd7 {[%clk 0:02:58.5]} 12. a4 {[%clk 0:03:05.1]} 12... b4
{[%clk 0:02:55.8]} 13. Nd1 {[%clk 0:03:06.1]} 13... g5 {[%clk 0:02:55.9]} 14.
Bg3 {[%clk 0:03:06.6]} 14... Nh5 {[%clk 0:02:56.9]} 15. Ne3 {[%clk 0:03:01.5]}
15... Nxg3 {[%clk 0:02:55.7]} 16. hxg3 {[%clk 0:03:02.2]} 16... Ne5 {[%clk
0:02:52.4]} 17. Be2 {[%clk 0:02:58.3]} 17... O-O {[%clk 0:02:49.9]} 18. Ndc4
{[%clk 0:02:56.3]} 18... Nxc4 {[%clk 0:02:45.8]} 19. Nxc4 {[%clk 0:02:52.3]}
19... f5 {[%clk 0:02:35.2]} 20. exf5 {[%clk 0:02:22.3]} 20... Bxf5 {[%clk
0:02:37.1]} 21. Qd1 {[%clk 0:02:23.5]} 21... Bd4 {[%clk 0:02:22.3]} 22. O-O
{[%clk 0:02:24]} 22... Qf6 {[%clk 0:02:21.1]} 23. Bg4 {[%clk 0:02:08.1]} 23...
Rad8 {[%clk 0:02:00.4]} 24. Bxf5 {[%clk 0:02:03.1]} 24... Qxf5 {[%clk
0:02:02.3]} 25. Qh5 {[%clk 0:01:29.6]} 25... Kg7 {[%clk 0:01:55.5]} 26. Rae1
{[%clk 0:01:22.4]} 26... Qxd5 {[%clk 0:01:33.3]} 27. b3 {[%clk 0:01:08.2]} 27...
Rf7 {[%clk 0:01:31.3]} 28. Kh2 {[%clk 0:01:00.1]} 28... Rdf8 {[%clk 0:01:30.8]}
29. f3 {[%clk 0:01:01.3]} 29... Rd8 {[%clk 0:01:11.7]} 30. Re2 {[%clk
0:00:55.6]} 30... Qf5 {[%clk 0:01:06.7]} 31. Rfe1 {[%clk 0:00:56.2]} 31... Qg6
{[%clk 0:00:58.8]} 32. Qh3 {[%clk 0:00:44.6]} 32... g4 {[%clk 0:00:29]} 33. fxg4
{[%clk 0:00:41.2]} 33... d5 {[%clk 0:00:30.1]} 34. g5 {[%clk 0:00:41.7]} 34...
dxc4 {[%clk 0:00:28.6]} 35. Re6 {[%clk 0:00:40.7]} 35... Qxg5 {[%clk 0:00:29.5]}
36. R1e4 {[%clk 0:00:40.9]} 36... Qc1 {[%clk 0:00:14.9]} 37. Re1 {[%clk
0:00:30.3]} 37... Qd2 {[%clk 0:00:13.2]} 38. R1e2 {[%clk 0:00:28.2]} 38... Qg5
{[%clk 0:00:12.3]} 39. R2e4 {[%clk 0:00:28.8]} 39... h5 {[%clk 0:00:13.7]} 40.
Rh4 {[%clk 0:00:25.5]} 40... Bg1+ {[%clk 0:00:09.5]} 41. Kh1 {[%clk 0:00:20]}
41... Rd1 {[%clk 0:00:11.4]} 42. Rxh5 {[%clk 0:00:21.3]} 42... Bd4+ {[%clk
0:00:09.8]} 43. Kh2 {[%clk 0:00:22.4]} 43... Rh1+ {[%clk 0:00:11.4]} 44. Kxh1
{[%clk 0:00:23.7]} 44... Qc1+ {[%clk 0:00:13.1]} 45. Kh2 {[%clk 0:00:24.7]}
45... Qg1# {[%clk 0:00:14.2]} 0-1

[Event "*** MasterClass Titled Tuesday Blitz"]
[Site "Chess.com"]
[Date "2017.11.07"]
[Round "3"]
[White "chessking2151"]
[Black "GMKrikor"]
[Result "0-1"]
[WhiteElo "2405"]
[BlackElo "2614"]
[TimeControl "180+2"]
[EndTime "14:44:13 PST"]
[Termination "GMKrikor won by resignation"]

1. e4 {[%clk 0:03:00.1]} 1... c5 {[%clk 0:03:00.4]} 2. Nf3 {[%clk 0:03:00.8]}
2... d6 {[%clk 0:03:01.7]} 3. d4 {[%clk 0:03:01.4]} 3... cxd4 {[%clk 0:03:03]}
4. Nxd4 {[%clk 0:03:03.3]} 4... Nf6 {[%clk 0:03:04.4]} 5. Nc3 {[%clk 0:03:04.6]}
5... a6 {[%clk 0:03:05.7]} 6. Be3 {[%clk 0:03:05.1]} 6... e5 {[%clk 0:02:55]} 7.
Nb3 {[%clk 0:03:05.6]} 7... Be6 {[%clk 0:02:54]} 8. f3 {[%clk 0:03:04.3]} 8...
Be7 {[%clk 0:02:43.5]} 9. Qd2 {[%clk 0:03:01.4]} 9... h5 {[%clk 0:02:41]} 10.
Nd5 {[%clk 0:02:59.5]} 10... Bxd5 {[%clk 0:02:38.2]} 11. exd5 {[%clk 0:03:00.6]}
11... Nbd7 {[%clk 0:02:39.4]} 12. c4 {[%clk 0:03:00.2]} 12... a5 {[%clk
0:02:38.8]} 13. Rd1 {[%clk 0:02:59.6]} 13... a4 {[%clk 0:02:16.7]} 14. Na1
{[%clk 0:03:00.3]} 14... e4 {[%clk 0:02:16.7]} 15. Nc2 {[%clk 0:02:32.7]} 15...
exf3 {[%clk 0:02:16.6]} 16. gxf3 {[%clk 0:02:33.4]} 16... Ne5 {[%clk 0:02:16.7]}
17. Be2 {[%clk 0:02:32]} 17... O-O {[%clk 0:02:09.5]} 18. Qb4 {[%clk 0:02:00.2]}
18... Nfd7 {[%clk 0:01:56.7]} 19. Nd4 {[%clk 0:01:54.5]} 19... Bh4+ {[%clk
0:01:51.5]} 20. Kd2 {[%clk 0:01:54.1]} 20... Nc5 {[%clk 0:01:49.9]} 21. Rhg1
{[%clk 0:01:28]} 21... Bf6 {[%clk 0:01:48.5]} 22. Nf5 {[%clk 0:01:18.2]} 22...
Re8 {[%clk 0:01:33.2]} 23. Rg2 {[%clk 0:00:49.4]} 23... Qd7 {[%clk 0:01:12.5]}
24. Nxd6 {[%clk 0:00:37]} 24... Na6 {[%clk 0:01:12.7]} 25. Qa3 {[%clk
0:00:33.6]} 25... Be7 {[%clk 0:00:56]} 26. Nxe8 {[%clk 0:00:30.8]} 26... Rxe8
{[%clk 0:00:56.6]} 27. c5 {[%clk 0:00:27.1]} 27... Qh3 {[%clk 0:00:36.9]} 28.
Rdg1 {[%clk 0:00:16.4]} 28... Bf6 {[%clk 0:00:35]} 29. Rg3 {[%clk 0:00:12.3]}
29... Qd7 {[%clk 0:00:32.3]} 30. d6 {[%clk 0:00:12.5]} 30... Nc6 {[%clk
0:00:21.9]} 31. Bh6 {[%clk 0:00:09.2]} 31... g6 {[%clk 0:00:21.8]} 32. Bc4
{[%clk 0:00:09.8]} 32... Kh7 {[%clk 0:00:19.5]} 33. Qe3 {[%clk 0:00:06.8]} 33...
Rxe3 {[%clk 0:00:20]} 34. Bxe3 {[%clk 0:00:08.1]} 34... Ne5 {[%clk 0:00:21.2]}
35. Be2 {[%clk 0:00:09.1]} 35... Nb4 {[%clk 0:00:22.2]} 36. a3 {[%clk
0:00:10.2]} 36... Nd5 {[%clk 0:00:23.1]} 37. Bd4 {[%clk 0:00:11.4]} 37... Qf5
{[%clk 0:00:24.3]} 38. Bxe5 {[%clk 0:00:06.9]} 38... Qxe5 {[%clk 0:00:24.1]} 39.
Ke1 {[%clk 0:00:06.9]} 39... Qxb2 {[%clk 0:00:25]} 40. d7 {[%clk 0:00:07.9]}
40... Qxa3 {[%clk 0:00:24.7]} 41. Kf1 {[%clk 0:00:07.6]} 41... Qxc5 {[%clk
0:00:25.6]} 42. Bd3 {[%clk 0:00:07.2]} 42... Ne3+ {[%clk 0:00:26.2]} 43. Ke2
{[%clk 0:00:07.8]} 43... Nf5 {[%clk 0:00:26.2]} 44. R3g2 {[%clk 0:00:05.9]}
44... Qe3+ {[%clk 0:00:26.1]} 0-1

[Event "*** MasterClass Titled Tuesday Blitz"]
[Site "Chess.com"]
[Date "2017.11.07"]
[Round "3"]
[White "ValeriyGrinev"]
[Black "Hanging_pointer"]
[Result "1-0"]
[WhiteElo "2439"]
[BlackElo "2310"]
[TimeControl "180+2"]
[EndTime "14:44:17 PST"]
[Termination "ValeriyGrinev won by resignation"]

1. d4 {[%clk 0:03:01.5]} 1... Nf6 {[%clk 0:03:00.6]} 2. c4 {[%clk 0:03:02]} 2...
e6 {[%clk 0:03:01.2]} 3. Nc3 {[%clk 0:03:03]} 3... Bb4 {[%clk 0:03:02.1]} 4. e3
{[%clk 0:03:04.6]} 4... O-O {[%clk 0:03:02.2]} 5. Ne2 {[%clk 0:03:06.1]} 5... c6
{[%clk 0:03:01.4]} 6. a3 {[%clk 0:03:07.4]} 6... Ba5 {[%clk 0:03:02.8]} 7. Qc2
{[%clk 0:03:08.9]} 7... d5 {[%clk 0:03:03.3]} 8. Ng3 {[%clk 0:03:10.5]} 8...
Nbd7 {[%clk 0:03:03]} 9. Be2 {[%clk 0:03:12.1]} 9... dxc4 {[%clk 0:02:56.5]} 10.
Bxc4 {[%clk 0:03:14]} 10... Bc7 {[%clk 0:02:54.9]} 11. O-O {[%clk 0:03:14.3]}
11... e5 {[%clk 0:02:53.6]} 12. Ba2 {[%clk 0:03:14.9]} 12... exd4 {[%clk
0:02:53.2]} 13. exd4 {[%clk 0:03:16.8]} 13... Nb6 {[%clk 0:02:48.8]} 14. Bg5
{[%clk 0:03:18.2]} 14... h6 {[%clk 0:02:43.4]} 15. Bxf6 {[%clk 0:03:17.9]} 15...
Qxf6 {[%clk 0:02:43.9]} 16. Rad1 {[%clk 0:03:19.8]} 16... Bg4 {[%clk 0:02:32.3]}
17. f3 {[%clk 0:03:19.7]} 17... Be6 {[%clk 0:01:43.8]} 18. Nce4 {[%clk
0:03:09.3]} 18... Qg6 {[%clk 0:01:21.5]} 19. Bxe6 {[%clk 0:03:08.1]} 19... Qxe6
{[%clk 0:01:19.5]} 20. Nc5 {[%clk 0:03:06.2]} 20... Qc8 {[%clk 0:01:04.4]} 21.
Nf5 {[%clk 0:03:06.6]} 21... Nd5 {[%clk 0:00:52.1]} 22. Rfe1 {[%clk 0:02:58.6]}
22... b6 {[%clk 0:00:41.8]} 23. Na4 {[%clk 0:02:42.5]} 23... Qd7 {[%clk
0:00:40.5]} 24. Nc3 {[%clk 0:02:41.6]} 24... Rfe8 {[%clk 0:00:14]} 25. Re4
{[%clk 0:02:13.7]} 25... Nf6 {[%clk 0:00:12.7]} 26. Rh4 {[%clk 0:01:59]} 26...
Bd6 {[%clk 0:00:10.5]} 27. Ne4 {[%clk 0:01:59.2]} 27... Nxe4 {[%clk 0:00:09.9]}
28. fxe4 {[%clk 0:02:00.3]} 28... Bf8 {[%clk 0:00:10.6]} 29. Kh1 {[%clk
0:01:50.4]} 29... Rad8 {[%clk 0:00:10.1]} 30. Rf1 {[%clk 0:01:34]} 30... Qe6
{[%clk 0:00:10.3]} 31. e5 {[%clk 0:01:32.5]} 31... c5 {[%clk 0:00:09.4]} 32.
dxc5 {[%clk 0:01:07.5]} 32... bxc5 {[%clk 0:00:11.3]} 33. Rhf4 {[%clk
0:01:00.8]} 33... Qxe5 {[%clk 0:00:11.7]} 34. h3 {[%clk 0:01:02.3]} 34... Rd7
{[%clk 0:00:11.2]} 35. Ng3 {[%clk 0:01:00.9]} 35... Red8 {[%clk 0:00:11.2]} 36.
Qc4 {[%clk 0:00:58.2]} 36... Qe8 {[%clk 0:00:07.4]} 37. Nh5 {[%clk 0:00:52.7]}
37... Bd6 {[%clk 0:00:07.6]} 38. Rg4 {[%clk 0:00:52.3]} 38... Qe5 {[%clk
0:00:04.2]} 39. Nf4 {[%clk 0:00:28.5]} 39... Bf8 {[%clk 0:00:04.2]} 40. Ng6
{[%clk 0:00:27.9]} 40... Rd4 {[%clk 0:00:03.9]} 41. Nxe5 {[%clk 0:00:28.3]}
41... Rxc4 {[%clk 0:00:04.4]} 42. Nxc4 {[%clk 0:00:30.2]} 1-0